bitfinex/quotes_SOLUSD_20250830
["timestamp","ask_amount","ask_price","bid_price","bid_amount"]
[1756535645827,0.06,205.96,205.93,5.55597716]
[1756535646034,4.59277911,205.95,205.93,0.7]
[1756535650358,31.28277911,205.94,205.93,0.03]
[1756535650562,34.89190631,205.94,205.93,0.03]
[1756535651656,39.74768954,205.94,205.93,0.03]
[1756535651848,36.13856234,205.94,205.93,0.03]
[1756535652051,39.74771497,205.94,205.93,0.03]
[1756535655968,42.99600595,205.94,205.93,0.03]
[1756535662554,42.99666877,205.94,205.93,0.03]
[1756535662958,42.99666908,205.94,205.93,0.03]
[1756535664467,34.20259487,205.94,205.93,0.03]
[1756535666864,39.0583781,205.94,205.93,0.03]
[1756535669477,39.06035765,205.94,205.93,0.03]
[1756535669966,34.20457442,205.94,205.93,0.03]
[1756535670149,34.20457442,205.94,205.93,0.7]
[1756535670470,29.61179531,205.94,205.93,0.7]
[1756535670663,29.61179531,205.94,205.93,0.03]
[1756535670865,29.61179531,205.94,205.93,0.7]
[1756535672270,34.20457442,205.94,205.93,0.7]
[1756535672776,34.20457442,205.94,205.93,0.03]
[1756535672974,30.59277911,205.94,205.93,0.03]
[1756535673277,34.20526096,205.94,205.93,0.03]
[1756535673772,39.72104419,205.94,205.93,0.03]
[1756535676668,42.97260622,205.94,205.93,0.03]
[1756535677582,80.69260622,205.94,205.93,0.03]
[1756535678663,80.03260622,205.94,205.93,0.03]
[1756535678857,80.69260622,205.94,205.93,0.03]
[1756535680178,42.97260622,205.94,205.93,0.03]
[1756535680962,42.97199479,205.94,205.93,0.03]
[1756535683649,42.97074694,205.94,205.93,0.03]
[1756535684089,42.97074957,205.94,205.93,0.03]
[1756535685357,42.97074957,205.94,205.88,0.03]
[1756535685358,26.0,205.89,205.88,0.03]
[1756535685549,75.17496634,205.89,205.88,0.03]
[1756535685751,75.83496634,205.89,205.88,0.03]
[1756535685950,0.14216157,205.88,205.84,0.03]
[1756535686173,30.59277911,205.85,205.84,0.03]
[1756535686360,72.58401574,205.85,205.84,0.03]
[1756535686758,74.53167274,205.85,205.84,0.03]
[1756535686979,71.92401574,205.85,205.84,0.03]
[1756535687274,4.59277911,205.85,205.84,0.71]
[1756535687573,30.59277911,205.85,205.84,0.71]
[1756535687756,4.59277911,205.85,205.84,0.71]
[1756535688950,30.59277911,205.85,205.84,0.71]
[1756535689165,4.59277911,205.85,205.84,0.71]
[1756535689560,30.59277911,205.85,205.84,0.71]
[1756535689764,30.59277911,205.85,205.84,0.03]
[1756535689971,35.45068535,205.85,205.84,0.03]
[1756535690296,39.71572468,205.85,205.84,0.03]
[1756535690584,39.71582407,205.85,205.84,0.03]
[1756535694371,39.71385619,205.85,205.84,0.03]
[1756535694878,39.71284552,205.85,205.84,0.03]
[1756535696462,41.66050252,205.85,205.84,0.03]
[1756535697374,45.04306706,205.85,205.83,0.03]
[1756535697586,45.93493928,205.84,205.83,0.03]
[1756535697949,48.54288128,205.84,205.83,0.03]
[1756535698365,48.54288128,205.84,205.82,0.03]
[1756535698366,53.27782196,205.84,205.82,0.03]
[1756535698568,12.92987996,205.83,205.81,0.03]
[1756535698882,9.18555822,205.81,205.8,0.2]
[1756535699095,26.0,205.78,205.73,0.68]
[1756535699388,4.59277911,205.74,205.7,0.68]
[1756535699563,4.59277911,205.71,205.67,13.59559401]
[1756535699756,4.59277911,205.7,205.67,13.59559401]
[1756535699957,4.59277911,205.69,205.66,6.683071]
[1756535700167,26.0,205.71,205.67,0.68]
[1756535700374,4.59277911,205.69,205.67,0.68]
[1756535701576,26.0,205.71,205.67,0.68]
[1756535701767,4.59277911,205.69,205.67,0.68]
[1756535702160,4.59277911,205.69,205.68,0.03]
[1756535702562,4.59277911,205.69,205.68,0.72]
[1756535706169,174.20052584,205.74,205.68,0.72]
[1756535706170,131.6,205.74,205.68,5.58183018]
[1756535706365,37.74,205.78,205.72,4.86097608]
[1756535706569,0.69,205.8,205.73,0.69]
[1756535706570,4.59277911,205.77,205.73,0.69]
[1756535706969,30.59277911,205.77,205.73,0.69]
[1756535707695,26.0,205.77,205.73,0.69]
[1756535707988,131.6,205.82,205.73,0.69]
[1756535707989,4.59277911,205.78,205.73,0.69]
[1756535708190,4.59277911,205.79,205.73,5.28277911]
[1756535708371,30.59277911,205.79,205.74,0.69]
[1756535708572,4.59277911,205.77,205.75,0.69]
[1756535709787,4.59277911,205.76,205.72,4.86089803]
[1756535710089,4.59277911,205.76,205.75,0.69]
[1756535710398,4.59277911,205.76,205.7,4.59277911]
[1756535710690,4.59277911,205.76,205.71,10.14399149]
[1756535710875,4.59277911,205.76,205.72,0.69]
[1756535711061,4.59277911,205.76,205.73,0.69]
[1756535711480,4.59277911,205.76,205.74,0.69]
[1756535712089,4.59277911,205.76,205.71,9.45399149]
[1756535712292,4.59277911,205.76,205.72,0.69]
[1756535712493,4.59277911,205.76,205.73,0.69]
[1756535715592,26.0,205.77,205.73,0.69]
[1756535715794,4.59277911,205.76,205.73,0.69]
[1756535716592,4.59277911,205.76,205.72,5.55090253]
[1756535716782,4.59277911,205.76,205.73,0.69]
[1756535718199,5.28277911,205.76,205.72,4.86090253]
[1756535718489,5.28277911,205.76,205.72,5.55090253]
[1756535719980,30.59277911,205.77,205.73,0.69]
[1756535720195,31.28277911,205.77,205.73,0.69]
[1756535721204,31.28277911,205.77,205.74,0.69]
[1756535721205,26.0,205.77,205.74,0.69]
[1756535721382,26.0,205.76,205.75,0.69]
[1756535721801,26.0,205.76,205.73,4.59277911]
[1756535722002,26.0,205.76,205.74,0.69]
[1756535722209,4.59277911,205.78,205.75,0.69]
[1756535723005,5.28277911,205.78,205.75,0.69]
[1756535723586,30.59277911,205.79,205.75,0.69]
[1756535723790,5.28277911,205.79,205.75,0.69]
[1756535725290,31.28277911,205.79,205.75,0.69]
[1756535725492,4.59277911,205.78,205.75,5.55021905]
[1756535726610,4.59277911,205.77,205.74,4.8604872]
[1756535726806,0.69,205.76,205.72,4.86097163]
[1756535726989,5.28277911,205.77,205.73,0.69]
[1756535727900,5.28277911,205.77,205.72,9.45375074]
[1756535728101,4.59277911,205.75,205.7,4.86125434]
[1756535728303,4.59277911,205.75,205.69,0.69]
[1756535728304,5.28277911,205.74,205.69,4.86168453]
[1756535728489,0.69,205.74,205.7,0.69]
[1756535728696,31.28277911,205.74,205.7,0.69]
[1756535729617,31.28277911,205.74,205.7,5.55143852]
[1756535730208,30.59277911,205.74,205.7,5.55143852]
[1756535730398,31.28277911,205.74,205.7,5.55143852]
[1756535730710,0.69,205.73,205.7,5.55143852]
[1756535731292,0.69,205.73,205.7,0.69]
[1756535731497,0.69,205.73,205.68,9.48467958]
[1756535731695,0.7,205.72,205.68,10.13467958]
[1756535732114,26.7,205.74,205.69,0.65]
[1756535732310,0.7,205.73,205.69,0.65]
[1756535732499,30.59277911,205.74,205.7,0.65]
[1756535732696,26.0,205.75,205.72,4.59277911]
[1756535733008,4.59277911,205.77,205.73,0.65]
[1756535733400,0.7,205.76,205.73,5.51063408]
[1756535733601,4.59277911,205.77,205.73,5.51063408]
[1756535733800,5.29277911,205.77,205.73,5.51063408]
[1756535736810,131.6,205.78,205.76,4.59277911]
[1756535737114,0.06,205.8,205.77,5.24277911]
[1756535737288,0.06,205.8,205.77,0.65]
[1756535737491,0.76,205.8,205.76,4.59277911]
[1756535737716,0.76,205.8,205.76,5.24277911]
[1756535737898,0.76,205.8,205.76,0.65]
[1756535738106,0.7,205.79,205.75,4.59277911]
[1756535738411,5.29277911,205.79,205.75,0.65]
[1756535738603,4.65277911,205.8,205.76,0.65]
[1756535738916,0.76,205.8,205.77,4.85979491]
[1756535739699,0.7,205.79,205.77,4.85979491]
[1756535740022,0.06,205.8,205.77,4.85979491]
[1756535740205,0.76,205.8,205.77,4.85979491]
[1756535740600,0.06,205.8,205.79,4.59277911]
[1756535740900,0.06,205.8,205.79,5.24277911]
[1756535741515,0.06,205.8,205.79,18.83837312]
[1756535741817,0.06,205.8,205.79,20.78555612]
[1756535742118,0.06,205.8,205.79,25.64487873]
[1756535743021,0.06,205.85,205.83,13.59559401]
[1756535743210,0.06,205.85,205.84,56.05053469]
[1756535743818,0.06,205.85,205.84,58.64714869]
[1756535744625,0.06,205.85,205.84,63.50529093]
[1756535748296,0.06,205.87,205.85,13.59559401]
[1756535748604,0.06,205.87,205.86,18.33053469]
[1756535748809,0.06,205.87,205.86,18.98053469]
[1756535749105,0.06,205.87,205.86,20.92676969]
[1756535750104,0.06,205.87,205.86,25.78443995]
[1756535752224,0.06,205.87,205.86,63.48443995]
[1756535752427,0.06,205.87,205.86,25.13443995]
[1756535752617,0.06,205.87,205.86,25.78443995]
[1756535752820,0.06,205.87,205.86,63.48443995]
[1756535753320,0.06,205.87,205.86,62.83443995]
[1756535753643,0.06,205.87,205.86,25.78443995]
[1756535753818,0.06,205.87,205.86,51.29559401]
[1756535754001,0.06,205.87,205.86,56.53837312]
[1756535754208,0.06,205.87,205.86,55.88837312]
[1756535755452,0.06,205.87,205.86,60.74604338]
[1756535755749,0.06,205.87,205.86,47.15044937]
[1756535755915,0.06,205.87,205.86,42.55767026]
[1756535756120,0.06,205.87,205.86,47.15044937]
[1756535756534,0.06,205.87,205.86,9.45044937]
[1756535756740,0.06,205.87,205.86,42.55767026]
[1756535756948,0.06,205.87,205.86,47.15044937]
[1756535760438,0.76,205.87,205.84,6.83474162]
[1756535760635,0.76,205.87,205.85,37.7]
[1756535760636,0.7,205.86,205.85,37.7]
[1756535761043,5.29277911,205.86,205.84,37.73]
[1756535761228,5.30277911,205.85,205.84,37.73]
[1756535762240,5.30277911,205.85,205.84,0.03]
[1756535765660,0.71,205.85,205.84,0.03]
[1756535765849,0.77,205.87,205.84,0.03]
[1756535766050,0.71,205.86,205.84,0.03]
[1756535767061,0.71,205.85,205.84,0.03]
[1756535768056,0.06,205.87,205.84,0.03]
[1756535768465,0.77,205.87,205.84,0.03]
[1756535768638,0.06,205.87,205.84,0.03]
[1756535768840,0.77,205.87,205.84,0.03]
[1756535769535,0.06,205.87,205.84,0.71]
[1756535770164,0.06,205.87,205.84,5.30277911]
[1756535770364,0.06,205.87,205.85,5.27277911]
[1756535770674,0.06,205.87,205.86,47.15044937]
[1756535770844,0.06,205.87,205.86,47.83044937]
[1756535771849,0.06,205.87,205.86,43.23767026]
[1756535772055,0.06,205.87,205.86,37.7]
[1756535778952,5.36277911,205.87,205.86,37.68]
[1756535779451,5.36277911,205.87,205.84,0.03]
[1756535779647,4.59277911,205.85,205.84,0.03]
[1756535780062,5.30277911,205.85,205.84,0.03]
[1756535784386,4.59277911,205.86,205.84,0.03]
[1756535784779,0.06,205.87,205.84,0.03]
[1756535784970,0.06,205.87,205.85,0.68]
[1756535785281,0.06,205.87,205.86,37.68]
[1756535789583,0.06,205.87,205.86,38.36]
[1756535792193,0.06,205.87,205.86,43.21767026]
[1756535792382,0.06,205.87,205.86,61.40604338]
[1756535792776,0.06,205.87,205.86,61.54820495]
[1756535793774,0.06,205.87,205.86,63.49443995]
[1756535794100,1e-08,205.87,205.86,63.49443995]
[1756535794512,1e-08,205.87,205.86,63.98020697]
[1756535804308,1e-08,205.87,205.86,58.98020697]
[1756535807988,1e-08,205.9,205.86,71.12438262]
[1756535808194,0.06,205.92,205.86,71.12438262]
[1756535808195,1e-08,205.92,205.91,0.14216157]
[1756535808420,0.67000001,205.92,205.91,55.99053469]
[1756535809219,1e-08,205.92,205.91,55.99053469]
[1756535809523,1e-08,205.92,205.91,60.84702538]
[1756535810100,1e-08,205.92,205.91,62.79278738]
[1756535811910,0.06,205.96,205.91,62.79278738]
[1756535812117,0.06,205.96,205.95,4.59277911]
[1756535812300,0.06,205.96,205.95,42.25277911]
[1756535812714,0.06,205.96,205.95,55.99053469]
[1756535814017,0.06,205.96,205.95,60.84608215]
[1756535815219,0.06,205.96,205.95,56.25330304]
[1756535815392,0.73,205.96,205.95,60.84608215]
[1756535816513,0.06,205.96,205.95,60.84608215]
[1756535816917,0.06,205.96,205.95,23.18608215]
[1756535817123,0.73,205.96,205.95,56.25330304]
[1756535817319,0.73,205.96,205.95,42.51554746]
[1756535817531,0.73,205.96,205.88,17.00019427]
[1756535817532,5.32277911,205.96,205.88,17.00019427]
[1756535817704,4.59277911,205.93,205.88,4.85719836]
[1756535817896,5.26277911,205.92,205.88,4.85719836]
[1756535818203,0.67,205.91,205.89,37.66]
[1756535818529,0.67,205.9,205.89,37.66]
[1756535819197,5.26277911,205.9,205.89,37.66]
[1756535820036,0.06,205.96,205.89,42.51696245]
[1756535820204,0.67,205.92,205.89,42.51696245]
[1756535820814,4.59277911,205.94,205.89,42.51696245]
[1756535821021,0.71,205.91,205.89,42.51696245]
[1756535822306,0.71,205.9,205.89,42.51696245]
[1756535823029,5.30277911,205.92,205.89,42.51696245]
[1756535823226,0.71,205.91,205.89,42.51696245]
[1756535823422,5.30277911,205.93,205.89,42.51696245]
[1756535823629,0.77,205.96,205.92,4.59277911]
[1756535823925,0.71,205.92,205.9,37.66]
[1756535824115,0.71,205.91,205.9,37.66]
[1756535825210,5.30277911,205.91,205.9,37.66]
[1756535825628,0.71,205.91,205.9,37.66]
[1756535826126,5.30277911,205.94,205.9,42.51672656]
[1756535826422,0.06,205.92,205.9,42.51672656]
[1756535826625,0.77,205.92,205.9,42.51672656]
[1756535827206,0.77,205.92,205.91,37.66]
[1756535827417,0.06,205.92,205.91,42.51649069]
[1756535832627,0.77,205.92,205.91,42.51649069]
[1756535833641,0.77,205.92,205.91,4.85649069]
[1756535833949,0.77,205.92,205.91,37.66]
[1756535834271,0.77,205.92,205.91,42.51649069]
[1756535834914,0.06,205.92,205.91,42.51649069]
[1756535844240,0.06,205.92,205.91,42.54649069]
[1756535845962,0.06,205.92,205.91,4.88649069]
[1756535846167,0.06,205.92,205.91,42.54649069]
[1756535849866,0.06,205.92,205.91,43.22649069]
[1756535850165,0.06,205.95,205.92,13.59559401]
[1756535850369,0.06,205.95,205.94,4.59277911]
[1756535850771,0.06,205.95,205.94,5.27277911]
[1756535850946,0.06,205.95,205.92,0.68]
[1756535851138,0.06,205.95,205.93,37.64]
[1756535851343,0.06,205.95,205.94,0.68]
[1756535851561,0.06,205.95,205.94,5.27277911]
[1756535851955,0.06,205.95,205.94,10.12856234]
[1756535854947,0.06,205.95,205.94,61.50631792]
[1756535854948,1e-08,205.95,205.94,61.50631792]
[1756535858880,0.06,205.99,205.95,13.73775558]
[1756535859073,0.06,205.99,205.97,18.33053469]
[1756535859246,0.06,205.99,205.98,51.37775558]
[1756535859581,0.06,205.99,205.98,52.05775558]
[1756535860067,0.06,205.99,205.98,55.97053469]
[1756535860270,0.06,205.99,205.98,52.05775558]
[1756535860778,0.06,205.99,205.98,56.91259585]
[1756535861471,0.06,205.99,205.98,19.27259585]
[1756535861977,0.06,205.99,205.98,56.91259585]
[1756535862753,0.06,205.99,205.98,61.50537496]
[1756535863176,0.06,205.99,205.98,56.91259585]
[1756535863385,0.06,205.99,205.98,61.50537496]
[1756535863780,0.06,205.99,205.98,56.91259585]
[1756535863962,0.06,205.99,205.98,19.27259585]
[1756535864168,0.06,205.99,205.98,56.91259585]
[1756535865278,0.06,205.99,205.98,61.50537496]
[1756535868568,0.06,205.99,205.98,56.23259585]
[1756535868769,0.06,205.99,205.98,60.82537496]
[1756535869373,0.06,205.99,205.98,61.50537496]
[1756535873286,0.06,205.99,205.98,59.84867242]
[1756535874189,0.06,205.99,205.98,4.85484027]
[1756535874485,0.06,205.99,205.98,42.47484027]
[1756535880683,0.06,205.99,205.98,56.89259585]
[1756535880894,0.06,205.99,205.98,59.82867242]
[1756535881403,0.06,205.99,205.98,56.89259585]
[1756535881605,0.06,205.99,205.98,59.82867242]
[1756535887913,0.06,205.99,205.98,59.79867242]
[1756535888585,0.06,205.99,205.98,22.17867242]
[1756535888787,0.06,205.99,205.98,59.79867242]
[1756535890084,0.06,206.0,205.98,61.72377142]
[1756535890314,0.06,206.0,205.99,3.58607657]
[1756535890932,0.06,206.0,205.99,5.53117557]
[1756535891107,0.06,206.0,205.99,8.44068116]
[1756535891427,0.06,206.0,205.99,10.38578016]
[1756535891931,0.06,206.0,205.99,7.44970359]
[1756535892118,0.06,206.0,205.99,46.04068116]
[1756535893321,0.06,206.0,205.99,47.98578116]
[1756535894342,0.06,206.0,205.99,46.04068116]
[1756535897132,0.06,206.0,205.99,47.98578116]
[1756535897809,0.06,206.0,205.99,46.04068116]
[1756535898617,0.06,206.0,205.99,47.98578016]
[1756535903251,1e-08,206.01,206.0,13.73775558]
[1756535903411,1e-08,206.01,206.0,51.98775558]
[1756535903610,1e-08,206.01,206.0,54.27383215]
[1756535904635,1e-08,206.01,206.0,59.12820108]
[1756535905027,1e-08,206.01,206.0,59.77820108]
[1756535908035,0.06,206.05,206.0,109.65842969]
[1756535908214,0.06,206.05,206.04,16.67383215]
[1756535908421,0.06,206.05,206.04,54.27383215]
[1756535908722,0.06,206.05,206.04,54.92383215]
[1756535910145,0.06,206.05,206.04,59.77725866]
[1756535910631,1e-08,206.06,206.05,13.73775558]
[1756535910822,1e-08,206.06,206.05,17.32383215]
[1756535911016,1e-08,206.06,206.05,42.67383215]
[1756535911219,1e-08,206.06,206.05,52.02775558]
[1756535911418,1e-08,206.06,206.05,54.96383215]
[1756535912225,1e-08,206.06,206.05,59.81702312]
[1756535913330,1e-08,206.06,206.05,59.79702312]
[1756535913642,0.66,206.14,206.1,0.14216157]
[1756535913847,0.66,206.14,206.12,16.67383215]
[1756535914040,0.66,206.14,206.13,37.64]
[1756535914234,0.66,206.17,206.14,4.85107208]
[1756535914431,2.93607657,206.19,206.15,37.64]
[1756535914432,0.66,206.16,206.15,37.64]
[1756535915741,3.59607657,206.16,206.15,37.64]
[1756535916240,0.66,206.16,206.15,37.64]
[1756535916457,0.66,206.16,206.15,37.8]
[1756535916860,3.59607657,206.16,206.15,37.8]
[1756535917348,3.59607657,206.16,206.15,37.82]
[1756535918046,0.66,206.16,206.15,37.82]
[1756535918449,0.66,206.16,206.15,42.67083676]
[1756535923048,3.59607657,206.16,206.13,4.849257]
[1756535923350,2.93607657,206.14,206.13,4.849257]
[1756535923731,2.93607657,206.14,206.11,37.8]
[1756535923732,3.59607657,206.14,206.11,37.8]
[1756535923930,2.93607657,206.12,206.11,37.8]
[1756535924354,3.59607657,206.12,206.11,37.8]
[1756535925450,5.2438905,206.12,206.11,37.8]
[1756535925852,0.66,206.12,206.11,42.65177817]
[1756535926236,4.5838905,206.13,206.11,42.65177817]
[1756535926556,5.2438905,206.13,206.11,42.65177817]
[1756535928649,0.66,206.13,206.11,42.65177817]
[1756535928855,5.2438905,206.13,206.11,37.8]
[1756535929027,4.5838905,206.12,206.11,37.8]
[1756535929227,5.2438905,206.12,206.11,37.8]
[1756535929432,0.66,206.16,206.11,43.34163263]
[1756535929749,4.5838905,206.15,206.11,43.34163263]
[1756535929955,0.66,206.14,206.11,42.65163263]
[1756535930257,5.2438905,206.15,206.11,42.65163263]
[1756535930458,5.2438905,206.15,206.11,43.34163263]
[1756535930651,4.5838905,206.16,206.11,43.34163263]
[1756535930853,5.2438905,206.16,206.11,43.34163263]
[1756535931455,0.66,206.16,206.11,43.34163263]
[1756535931757,5.2438905,206.16,206.11,42.65163263]
[1756535932064,5.2438905,206.16,206.13,4.85130742]
[1756535932259,5.2438905,206.16,206.14,37.82]
[1756535932458,0.66,206.16,206.14,37.82]
[1756535932641,5.3038905,206.16,206.14,37.82]
[1756535933539,0.66,206.15,206.14,37.82]
[1756535933747,4.6438905,206.16,206.14,37.82]
[1756535933949,0.72,206.16,206.14,37.82]
[1756535936542,5.3038905,206.16,206.14,37.82]
[1756535937253,4.6438905,206.16,206.14,37.82]
[1756535938562,4.5838905,206.15,206.14,37.82]
[1756535940741,10.09477465,206.15,206.07,5.54269792]
[1756535940968,4.5838905,206.1,206.08,37.76]
[1756535941177,4.5838905,206.09,206.08,37.76]
[1756535941356,0.7,206.12,206.08,38.44]
[1756535941357,4.5838905,206.1,206.08,38.44]
[1756535942448,4.5838905,206.09,206.08,0.68]
[1756535942656,5.2838905,206.09,206.06,0.03]
[1756535942855,4.5838905,206.07,206.06,0.03]
[1756535943868,31.2838905,206.07,206.06,0.03]
[1756535944678,4.5838905,206.08,206.06,0.03]
[1756535944975,136.1838905,206.09,206.06,38.51]
[1756535945159,136.1838905,206.09,206.07,0.68]
[1756535945677,4.5838905,206.08,206.06,37.83]
[1756535945881,4.5838905,206.07,206.06,37.83]
[1756535946050,4.5838905,206.07,206.06,38.51]
[1756535946252,4.5838905,206.08,206.06,43.36295544]
[1756535946573,4.5838905,206.07,206.06,43.36295544]
[1756535946757,4.5838905,206.07,206.06,42.68295544]
[1756535948278,4.5838905,206.07,206.06,43.36295544]
[1756535948973,131.6,206.09,206.06,43.36295544]
[1756535948974,4.5838905,206.08,206.06,43.36295544]
[1756535949173,131.6,206.09,206.07,5.2638905]
[1756535949482,131.6,206.09,206.08,38.48]
[1756535950662,4.5838905,206.11,206.08,38.48]
[1756535950865,4.5838905,206.11,206.09,0.68]
[1756535951071,4.5838905,206.11,206.1,38.5]
[1756535951874,4.5838905,206.11,206.1,37.82]
[1756535952461,4.5838905,206.11,206.1,38.5]
[1756535953081,4.5838905,206.11,206.1,38.48]
[1756535953464,4.5838905,206.11,206.09,4.85224901]
[1756535953664,4.5838905,206.1,206.09,4.85224901]
[1756535953862,4.5838905,206.1,206.09,42.65224901]
[1756535954683,4.5838905,206.1,206.09,43.33224901]
[1756535954895,4.5838905,206.1,206.06,0.03]
[1756535954896,5.2838905,206.1,206.06,0.03]
[1756535955095,4.5838905,206.07,206.06,0.03]
[1756535955256,4.5838905,206.07,206.06,37.83]
[1756535955886,131.6,206.11,206.06,37.83]
[1756535956201,135.90875693,206.1,206.07,37.8]
[1756535956375,4.5838905,206.08,206.07,37.8]
[1756535956764,4.5838905,206.08,206.06,4.88295198]
[1756535957069,4.5838905,206.08,206.07,37.8]
[1756535961197,4.5838905,206.08,206.07,42.65271994]
[1756535961497,4.5838905,206.08,206.07,43.33271994]
[1756535961800,4.5838905,206.08,206.07,42.65271994]
[1756535962469,4.5838905,206.08,206.07,37.76]
[1756535967596,5.2838905,206.08,206.07,37.76]
[1756535967807,5.2838905,206.08,206.06,0.03]
[1756535967975,4.5838905,206.07,206.06,37.75]
[1756535968299,5.2838905,206.07,206.06,37.75]
[1756535968473,5.2838905,206.07,206.06,0.03]
[1756535970592,8.89610855,206.07,206.06,0.03]
[1756535972215,13.74882849,206.07,206.06,0.03]
[1756535972691,8.89610855,206.07,206.06,0.03]
[1756535974804,3.61221805,206.07,206.06,0.71]
[1756535975009,30.6438905,206.08,206.06,38.39]
[1756535975314,0.06,206.08,206.07,0.68]
[1756535975802,0.06,206.08,206.07,5.2638905]
[1756535975977,0.06,206.08,206.07,10.11661044]
[1756535976493,0.06,206.08,206.07,5.53271994]
[1756535978497,0.06,206.08,206.07,19.27047552]
[1756535978809,0.06,206.08,206.07,23.85436602]
[1756535979386,0.06,206.08,206.07,19.27047552]
[1756535979596,0.06,206.08,206.07,23.85436602]
[1756535980998,0.06,206.08,206.07,5.53271994]
[1756535981385,0.06,206.08,206.07,43.35271994]
[1756535981588,0.06,206.08,206.07,37.82]
[1756535981799,5.3338905,206.08,206.07,37.82]
[1756535982087,4.6438905,206.08,206.07,37.82]
[1756535984393,0.06,206.08,206.07,38.5]
[1756535984590,0.06,206.08,206.07,43.35271994]
[1756535985484,0.06,206.08,206.07,47.93661044]
[1756535986812,0.06,206.08,206.07,43.35271994]
[1756535990926,0.06,206.08,206.07,43.33271994]
[1756535994626,0.06,206.08,206.07,42.65271994]
[1756535995794,0.06,206.08,206.07,37.76]
[1756535996911,0.06,206.08,206.07,42.61271994]
[1756535997115,0.06,206.08,206.07,43.29271994]
[1756535997694,0.06,206.08,206.07,42.61271994]
[1756535998828,0.06,206.08,206.07,43.29271994]
[1756535999621,0.06,206.08,206.07,42.61271994]
[1756536000222,5.3338905,206.08,206.07,37.76]
[1756536000411,5.3338905,206.08,206.07,37.72]
[1756536000906,4.6438905,206.08,206.07,37.72]
[1756536001300,0.06,206.08,206.07,37.72]
[1756536001504,4.6438905,206.08,206.07,37.72]
[1756536002311,4.6438905,206.08,206.07,42.57271994]
[1756536002707,0.06,206.08,206.07,43.28271994]
[1756536005944,0.06,206.11,206.07,59.99841031]
[1756536006122,0.06,206.11,206.1,4.5838905]
[1756536006312,0.06,206.11,206.1,42.3238905]
[1756536006512,0.06,206.11,206.1,43.0338905]
[1756536007011,0.06,206.11,206.1,38.45]
[1756536007212,0.06,206.11,206.1,43.0338905]
[1756536008334,0.06,206.11,206.1,47.88590408]
[1756536009630,1e-08,206.11,206.1,47.88590408]
[1756536010017,1e-08,206.13,206.11,13.59559401]
[1756536010233,1e-08,206.13,206.12,56.04164608]
[1756536010539,1e-08,206.16,206.13,13.59559401]
[1756536010706,1e-08,206.16,206.15,18.32164608]
[1756536010912,5.2738905,206.26,206.15,18.32164608]
[1756536011111,5.2738905,206.26,206.2,4.5838905]
[1756536011407,5.2738905,206.26,206.22,4.84919018]
[1756536011609,5.2738905,206.26,206.23,37.76]
[1756536012313,0.69,206.25,206.23,37.76]
[1756536012634,5.2738905,206.25,206.24,4.84871993]
[1756536012832,5.2738905,206.25,206.17,4.8503662]
[1756536013131,4.5838905,206.22,206.18,37.76]
[1756536013321,4.5838905,206.22,206.18,38.47]
[1756536013719,4.5838905,206.23,206.19,0.71]
[1756536013936,4.5838905,206.23,206.2,37.76]
[1756536014342,4.5838905,206.23,206.2,38.47]
[1756536014517,4.5838905,206.24,206.21,4.84942534]
[1756536014717,4.5838905,206.23,206.22,37.74]
[1756536014941,4.5838905,206.24,206.22,37.74]
[1756536015135,4.5838905,206.25,206.22,37.74]
[1756536015344,26.0,206.27,206.22,38.45]
[1756536015545,4.5838905,206.25,206.22,37.74]